[Event "13th KIIT Festival-A 2022"]
[Site "Bhubaneswar"]
[Date "2022.05.27"]
[Round "8.12"]
[White "Sidhant, Mohapatra"]
[Black "Shiva Pavan Teja Sharma U"]
[Result "1-0"]
[ECO "E51"]
[WhiteElo "2327"]
[BlackElo "2064"]
[Annotator "TA"]
[PlyCount "75"]
[EventDate "2022.05.15"]
[EventType "swiss"]
[EventCountry "IND"]
[SourceTitle "playchess.com"]
[Source "ChessBase"]
[SourceQuality "1"]
[TimeControl "5400+30"]

{[%evp 21,75,21,1,-10,0,0,0,-16,0,-31,0,0,-4,0,0,-37,-33,-17,-7,-18,0,0,39,32,22,15,51,28,68,59,89,55,55,55,55,56,55,55,55,54,55,55,97,97,300,300,295,287,290,276,372,374,369,314,326,311]} 1. Nf3 {[%emt 0:00:03]} d5 {[%emt 0:05:45]} 2. d4 {[%emt 0:00:26]} Nf6 {[%emt 0:00:32]} 3. c4 {[%emt 0:00:11]} e6 {[%emt 0:01:22]} 4. Nc3 {[%emt 0:01:31]} dxc4 {[%emt 0:07:42]} 5. e3 {[%emt 0:03:32]} c5 {[%emt 0:05:22]} 6. Bxc4 {[%emt 0:00:36]} a6 {[%emt 0:02:25]} 7. a3 {[%emt 0:03:52]} b5 {[%emt 0:01:15]} 8. Ba2 {[%emt 0:00:09]} Bb7 {[%emt 0:00:45]} 9. O-O {[%emt 0:00:11]} Be7 {[%emt 0:12:35]} 10. Qe2 {[%emt 0:05:03]} cxd4 {[%emt 0:08:48]} 11. exd4 {[%emt 0:03:39]} O-O {[%emt 0:00:56]} 12. Bg5 {[%emt 0:00:44][%cal Od4d5] E51: Nimzo-Indian: Rubinstein: 4...0-0 5 Nf3 d5.} Nbd7 {[%emt 0:01:14][%cal Bb8d7,Bd7b6,Bb6d5][%mdl 32]} 13. Rad1 {[%emt 0:01:31]} Nb6 {[%emt 0:09:46]} 14. Bb1 {[%emt 0:10:42] The position is equal.} Nbd5 {[%emt 0:06:19]} 15. Ne4 {[%emt 0:07:40]} Nxe4 {[%emt 0:04:51]} 16. Qxe4 {[%emt 0:00:06][%csl Gb1][%cal Re4h7]} g6 {[%emt 0:01:01] [#]} 17. Bh6 $146 {[%emt 0:02:08]} ({Predecessor:} 17. Qh4 Nf6 18. d5 Bxd5 19. Ne5 Rc8 20. Rc1 Rxc1 21. Rxc1 h5 22. Rd1 {1-0 (41) Avrukh,B (2557)-Krush,I (2449) Andorra 2003}) 17... Re8 $1 {[%emt 0:01:11]} 18. Rfe1 {[%emt 0:02:39]} Rc8 {[%emt 0:01:13]} 19. Ne5 {[%emt 0:04:16][%cal Oe5f7,Bf3e5,Be5d3,Bd3c5][%mdl 32] Hoping for Nxf7!} Bf6 {[%emt 0:05:28]} 20. Qf3 {[%emt 0:02:04]} Rc7 {[%emt 0:03:10][%cal Od5c3] White must now prevent ...Nc3!} 21. Be4 {[%emt 0:01:05]} Bg7 {[%emt 0:01:27]} 22. Bxg7 {[%emt 0:01:37]} Kxg7 {[%emt 0:00:05]} 23. Rc1 {[%emt 0:00:12][%cal Oh2h4]} f6 {[%emt 0:03:19]} 24. Nd3 {[%emt 0:01:42]} Ree7 {[%emt 0:01:37]} 25. Nc5 {[%emt 0:01:40]} Bc8 {[%emt 0:01:46]} 26. Bxd5 {[%emt 0:06:27] White is more active.} (26. b4 {looks sharper.} Nb6 27. Qg3 Nc4 28. Qc3) 26... Qxd5 {[%emt 0:01:44]} 27. Qxd5 {[%emt 0:00:09]} exd5 {[%emt 0:00:04]} 28. f3 {[%emt 0:00:09]} Kf7 {[%emt 0:00:45]} 29. Kf2 {[%emt 0:00:08]} Rxe1 {[%emt 0:00:40]} 30. Kxe1 $14 {[%emt 0:00:46][%mdl 4096] Endgame KRB-KRN} Ke7 {[%emt 0:01:06]} 31. Kd2 {[%emt 0:00:10]} Kd6 {[%emt 0:00:21]} 32. Re1 {[%emt 0:05:13]} Re7 $2 {[%emt 0:02:08] Prevents Re8. This move loses the game for Black.} (32... Bd7 $16 {might work better.}) 33. Rxe7 $18 {[%emt 0:01:47]} Kxe7 {[%emt 0:00:05]} 34. Kc3 $1 {[%emt 0:00:07]} a5 {[%emt 0:00:29] [#]} 35. Nb3 $1 {[%emt 0:00:14]} a4 {[%emt 0:00:24]} 36. Nc5 {[%emt 0:00:01] aiming for Kb4.} Kd6 {[%emt 0:00:16]} 37. Kb4 {[%emt 0:00:01]} Kc6 {[%emt 0:00:20] [#]} 38. Ka5 $1 {[%emt 0:00:02] Weighted Error Value: White=0.07 (flawless) /Black=0.21 (precise)} 1-0

[Event "13th KIIT Festival-A 2022"]
[Site "Bhubaneswar"]
[Date "2022.05.27"]
[Round "8.13"]
[White "Aaryan Varshney"]
[Black "Ankit Ray"]
[Result "1-0"]
[ECO "E16"]
[WhiteElo "2308"]
[BlackElo "1932"]
[Annotator "TA"]
[PlyCount "81"]
[EventDate "2022.05.15"]
[EventType "swiss"]
[EventCountry "IND"]
[SourceTitle "playchess.com"]
[Source "ChessBase"]
[SourceQuality "1"]
[TimeControl "5400+30"]

{[%evp 15,81,21,5,16,5,16,10,0,3,0,0,0,1,0,40,41,45,37,40,41,68,55,78,100,75,100,96,0,114,108,223,225,220,210,222,217,213,216,221,214,219,219,221,214,221,222,272,270,267,216,377,365,406,406,796,791,1945,1767,1868,1697,1625,1610,29992,29993,29993,29994,29994,29995]} 1. d4 {[%emt 0:00:25]} Nf6 {[%emt 0:01:06]} 2. c4 {[%emt 0:00:10]} e6 {[%emt 0:00:45]} 3. Nf3 {[%emt 0:00:13]} b6 {[%emt 0:01:15]} 4. g3 {[%emt 0:00:24]} Bb4+ {[%emt 0:01:06]} 5. Bd2 {[%emt 0:00:15]} Be7 {[%emt 0:00:21]} 6. Bg2 {[%emt 0:00:49]} Bb7 {[%emt 0:00:08]} 7. O-O {[%emt 0:00:54]} O-O {[%emt 0:02:15]} 8. Nc3 {[%emt 0:00:33]} c6 {[%emt 0:00:51]} 9. e4 {[%emt 0:04:30] E16: Queen's Indian: 4 g3 Bb7 5 Bg2 Bb4+.} d5 $1 {[%emt 0:00:13]} 10. e5 {[%emt 0:05:25] 10.exd5 is the hot move.} Ne4 {[%emt 0:00:21] [#]} 11. b3 $146 {[%emt 0:11:59][%cal Bb2b3,Bb3b4,Bb4b5][%mdl 32] The position is equal.} ({Predecessor:} 11. cxd5 Nxd2 12. Qxd2 cxd5 13. Rfe1 a6 14. Bf1 b5 15. Bd3 Nc6 16. Rad1 Qd7 17. h4 {0-1 (45) Swapnil,S (2533)-Moussard,J (2571) Chess.com INT 2018}) 11... Nxd2 {[%emt 0:07:42]} 12. Nxd2 {[%emt 0:02:09]} Na6 {[%emt 0:00:45]} 13. a3 {[%emt 0:02:04]} Rb8 {[%emt 0:06:25]} 14. b4 {[%emt 0:02:07]} c5 {[%emt 0:00:19]} 15. dxc5 {[%emt 0:00:34]} bxc5 {[%emt 0:00:08]} 16. b5 {[%emt 0:00:15] Hoping for cxd5.} Nc7 {[%emt 0:00:11]} 17. a4 {[%emt 0:00:06]} h6 {[%emt 0:05:19]} 18. Qc2 {[%emt 0:02:43]} Qd7 {[%emt 0:04:37]} 19. Rfd1 {[%emt 0:02:05]} Rfd8 {[%emt 0:03:53]} 20. Nb3 {[%emt 0:04:15]} Qe8 {[%emt 0:00:45]} 21. Ne2 {[%emt 0:01:17] 0x0.0024a8d10479dp-1022s more active pieces.} (21. Na5 $16) 21... Na8 {[%emt 0:03:35] [#]} (21... dxc4 $11 {remains equal.} 22. Na5 Bxg2 23. Kxg2 Rxd1 24. Rxd1 a6) 22. cxd5 $1 $16 {[%emt 0:04:18] Black is now going downhill.} exd5 {[%emt 0:00:19]} (22... Bxd5 $16 {is a better defense.} 23. Bxd5 (23. Nxc5 $2 Rbc8 $19) 23... exd5) 23. Na5 $18 {[%emt 0:02:11]} ({But not} 23. Nxc5 $2 Rbc8 24. Nf4 Rxc5 $19) 23... Nc7 {[%emt 0:07:30]} 24. Nxb7 {[%emt 0:00:24]} Rxb7 {[%emt 0:00:04]} 25. Nc3 {[%emt 0:00:51]} Bf8 {[%emt 0:06:11]} 26. Nxd5 {[%emt 0:01:48]} Nxd5 {[%emt 0:08:00]} 27. Bxd5 {[%emt 0:02:24]} ({Much less strong is} 27. Rxd5 $6 Rxd5 28. Bxd5 Qxe5 $16) 27... Rbd7 {[%emt 0:00:07]} 28. Qe4 {[%emt 0:04:25] e6 is the strong threat.} Kh8 {[%emt 0:01:34]} 29. f4 {[%emt 0:07:15]} Qe7 {[%emt 0:00:51][%cal Oc5c4]} 30. Rac1 {[%emt 0:01:46]} h5 {[%emt 0:05:52]} 31. Rd3 {[%emt 0:02:20]} g6 {[%emt 0:00:52]} 32. Rcd1 {[%emt 0:00:36]} Bg7 $2 {[%emt 0:00:43]} (32... c4 33. Bxc4 Rxd3 34. Rxd3 Rxd3 35. Qxd3 Kg7) 33. Kg2 {[%emt 0:01:14][%cal Bg1g2,Bg2h3,Bh3h4][%mdl 32]} Kh7 {[%emt 0:00:56]} 34. a5 {[%emt 0:04:08]} f5 {[%emt 0:02:35]} (34... Kh8 $142 35. b6 axb6 36. axb6 Rb8) 35. exf6 {[%emt 0:03:52]} Qxf6 {[%emt 0:00:10] [#]} 36. Bg8+ $1 {[%emt 0:00:35][%mdl 512]} Rxg8 {[%emt 0:00:31]} 37. Rxd7 {[%emt 0:00:05]} Qb2+ {[%emt 0:00:11]} 38. Kh3 {[%emt 0:02:18] Intending R1d6 and mate.} Qxb5 {[%emt 0:00:09]} 39. R1d6 {[%emt 0:00:40] White mates.} Qf1+ {[%emt 0:00:07]} 40. Kh4 {[%emt 0:00:30]} Kh8 {[%emt 0:02:16]} 41. Qxg6 {[%emt 0:00:11] Weighted Error Value: White=0.08 (flawless) /Black=0.42} 1-0

[Event "13th KIIT Festival-A 2022"]
[Site "Bhubaneswar"]
[Date "2022.05.27"]
[Round "8.14"]
[White "Gusain, Himal"]
[Black "Rajanya Datta"]
[Result "1-0"]
[ECO "D02"]
[WhiteElo "2396"]
[BlackElo "1589"]
[Annotator "TA"]
[PlyCount "57"]
[EventDate "2022.05.15"]
[EventType "swiss"]
[EventCountry "IND"]
[SourceTitle "playchess.com"]
[Source "ChessBase"]
[SourceQuality "1"]
[TimeControl "5400+30"]

{[%evp 9,56,21,63,66,71,54,62,55,63,61,53,50,52,31,81,93,102,85,579,575,918,942,927,81,905,893,29969,29970,29970,29970,12829,12816,5689,5515,2381,1995,29984,29985,29990,29991,29995,29996,29996,29997,29997,29998,29998,29999,29999]} 1. d4 {[%emt 0:09:08]} d5 {[%emt 0:00:31]} 2. Nf3 {[%emt 0:00:06]} e6 {[%emt 0:00:09]} 3. Bf4 {[%emt 0:00:09]} Bd6 {[%emt 0:00:12]} 4. e3 {[%emt 0:00:07]} c6 {[%emt 0:00:04]} 5. Nbd2 {[%emt 0:00:28]} f5 {[%emt 0:00:10]} 6. c4 {[%emt 0:05:42] D02: 1 d4 d5 2 Nf3 sidelines, including 2...Nf6 3 g3 and 2...Nf6 3 Bf4.} Nf6 {[%emt 0:00:58]} 7. Bd3 {[%emt 0:04:06]} O-O {[%emt 0:02:27]} 8. O-O {[%emt 0:08:19] White is slightly better.} b6 {[%emt 0:02:27]} 9. Ne5 {[%emt 0:01:29]} Bb7 {[%emt 0:00:53] [#]} 10. cxd5 $146 {[%emt 0:00:13]} ({Predecessor:} 10. Rc1 Qe7 11. Qe2 c5 12. cxd5 Nxd5 13. dxc5 Bxc5 14. Bg3 Nd7 15. e4 Nb4 16. Bc4 {1-0 (45) Duzhakov,I (2326)-Donskov,A (2172) St Petersburg 2010}) 10... Nxd5 {[%emt 0:08:25]} 11. Bg3 {[%emt 0:00:08]} Qe7 {[%emt 0:09:06]} (11... Bxe5 $14 12. Bxe5 Nd7) 12. Ndc4 $16 {[%emt 0:07:22] White leaves nothing to chance now.} Bc7 {[%emt 0:05:48]} 13. e4 {[%emt 0:01:39]} f4 $2 {[%emt 0:19:15][%mdl 8192]} (13... b5 $16 {is more resistant.}) 14. exd5 $18 {[%emt 0:00:09][%cal Od3h7] Black must now prevent Bxh7+!} cxd5 {[%emt 0:06:34] [#]} 15. Bxh7+ $1 {[%emt 0:02:23][%mdl 512]} Kxh7 {[%emt 0:01:20]} 16. Qh5+ $40 {[%emt 0:00:07][%mdl 128] White has strong attack.} Kg8 {[%emt 0:00:38] Hoping for ...Rf5.} 17. Ng6 $1 {[%emt 0:00:29][%csl LRe7,LRf8][%cal Rg6e7] Pair of Knights!} Qe8 {[%emt 0:00:18]} 18. Qh8+ {[%emt 0:01:12]} Kf7 {[%emt 0:00:17]} 19. Nce5+ {[%emt 0:00:06]} Bxe5 {[%emt 0:00:09]} 20. Nxe5+ {[%emt 0:00:13]} Ke7 {[%emt 0:01:52]} 21. Qxg7+ {[%emt 0:02:45]} Kd6 {[%emt 0:03:12]} 22. Qxb7 {[%emt 0:00:10][%cal Of1c1] [#] Intending Rfc1! and mate.} fxg3 {[%emt 0:00:49]} 23. fxg3 {[%emt 0:00:23] White mates.} Rxf1+ {[%emt 0:03:54]} 24. Rxf1 {[%emt 0:00:06]} Nd7 {[%emt 0:00:44]} 25. Qc6+ {[%emt 0:00:08]} Ke7 {[%emt 0:01:17]} 26. Rf7+ {[%emt 0:00:17]} Qxf7 {[%emt 0:00:43]} 27. Qxd7+ {[%emt 0:00:07]} Kf6 {[%emt 0:00:19]} 28. Qxf7+ {[%emt 0:00:06]} Kg5 {[%emt 0:00:04]} 29. Qg6# {[%emt 0:00:38] Weighted Error Value: White=0.02 (flawless) /Black=1.13} 1-0

[Event "13th KIIT Festival-A 2022"]
[Site "Bhubaneswar"]
[Date "2022.05.27"]
[Round "8.15"]
[White "Dhananjay S"]
[Black "Aditya P Melani"]
[Result "1-0"]
[ECO "A38"]
[WhiteElo "2218"]
[BlackElo "1855"]
[Annotator "TA"]
[PlyCount "83"]
[EventDate "2022.05.15"]
[EventType "swiss"]
[EventCountry "IND"]
[SourceTitle "playchess.com"]
[Source "ChessBase"]
[SourceQuality "1"]
[TimeControl "5400+30"]

{[%evp 31,83,8,6,0,0,0,0,0,3,0,13,14,15,15,12,24,20,16,13,13,19,2,2,2,8,2,2,2,8,4,11,8,23,8,34,9,54,26,125,130,418,416,480,476,442,77,29979,12833,12833,12833,5714,12833,29998,29999]} 1. c4 {[%emt 1:31:00]} c5 {[%emt 1:31:00]} 2. Nc3 {[%emt 0:00:30]} Nc6 {[%emt 0:00:30]} 3. g3 {[%emt 0:00:30]} g6 {[%emt 0:00:30]} 4. Bg2 {[%emt 0:00:30]} Bg7 {[%emt 0:00:30]} 5. a3 {[%emt 0:00:30]} a5 {[%emt 0:00:30]} 6. Nf3 {[%emt 0:00:30]} Nf6 {[%emt 0:00:30][%cal Bg8f6,Bf6e8,Be8c7][%mdl 32]} 7. O-O {[%emt 0:00:30]} O-O {[%emt 0:00:30]} 8. d3 {[%emt 0:00:30]} d6 {[%emt 0:00:30]} 9. Ne1 {[%emt 0:00:30]} Ne8 {[%emt 0:00:30]} 10. Nc2 {[%emt 0:00:30]} Nc7 {[%emt 0:00:30]} 11. Rb1 {[%emt 0:00:30]} Bd7 {[%emt 0:00:30]} 12. Bd2 {[%emt 0:00:30]} Rb8 {[%emt 0:00:30]} 13. b4 {[%emt 0:00:30]} axb4 {[%emt 0:00:30]} 14. axb4 {[%emt 0:00:30]} cxb4 {[%emt 0:00:30]} 15. Nxb4 {[%emt 0:00:30]} Nxb4 {[%emt 0:00:30]} 16. Rxb4 {[%emt 0:00:30]} b5 {[%emt 0:00:30]} 17. Qc1 {[%emt 0:00:30] A38: Symmetrical English vs ...g6: 4 Bg2 Bg7 5 Nf3 Nf6.} Na6 {[%emt 0:00:30]} 18. Rb1 {[%emt 0:00:30][%cal Rc4b5]} bxc4 {[%emt 0:00:30] [#]} 19. Qa3 $146 {[%emt 0:00:30] The position is equal.} ({Predecessor:} 19. Rxb8 Qxb8 20. Nd5 Re8 21. Qxc4 Nc5 22. Bg5 Bf8 23. Qh4 Qd8 24. Rc1 Be6 25. Bf3 Bxd5 26. Bxd5 {1-0 (40) Thiede,L (2310)-Vater,I (1715) Ueckermuende 1997}) 19... Nc5 {[%emt 0:00:30]} 20. dxc4 {[%emt 0:00:30]} Bg4 {[%emt 0:00:30]} 21. Rb5 {[%emt 0:00:30]} Bd7 {[%emt 0:00:30]} 22. Rxb8 {[%emt 0:00:30]} Qxb8 {[%emt 0:00:30]} 23. Rb1 {[%emt 0:00:30] Prevents Qb3.} Qd8 {[%emt 0:00:30]} 24. Be3 {[%emt 0:00:30]} Be6 {[%emt 0:00:30]} 25. Nd5 {[%emt 0:00:30]} Bxd5 {[%emt 0:00:30]} 26. Bxd5 {[%emt 0:00:30]} Qc7 {[%emt 0:00:30]} 27. Rb5 {[%emt 0:00:30][%cal Re3c5,Bb1b5,Bb5a5,Ba5a7][%mdl 32]} Rc8 {[%emt 0:00:30]} 28. Kg2 {[%emt 0:00:30]} e6 {[%emt 0:00:30]} 29. Bf3 {[%emt 0:00:30]} Bf8 {[%emt 0:00:30]} 30. h4 {[%emt 0:00:30]} Rb8 {[%emt 0:00:30]} 31. Ra5 {[%emt 0:00:30]} Qb6 {[%emt 0:00:30]} 32. Ra7 {[%emt 0:00:30]} Qb4 {[%emt 0:00:30]} 33. Qa2 {[%emt 0:00:30]} Bg7 {[%emt 0:00:30]} 34. h5 {[%emt 0:00:30]} Qb3 {[%emt 0:00:30] [#]} (34... Bf8 $11) 35. Qa5 $1 $16 {[%emt 0:00:30]} Rc8 {[%emt 0:00:30][%mdl 8192] Inhibits Qc7.} (35... Qb6 $16 {was worth a try.}) 36. Ra8 $18 {[%emt 0:00:30]} Rb8 {[%emt 0:00:30]} 37. Qa7 {[%emt 0:00:30]} Rf8 {[%emt 0:00:30]} 38. h6 $2 $40 {[%emt 0:00:30][%mdl 128] White has strong attack.} (38. Bg5 $18) 38... Bf6 {[%emt 0:00:30][%mdl 8192] [#]} (38... Rxa8 $16 39. Qxa8+ Bf8) 39. Rxf8+ {[%emt 0:00:30]} Kxf8 {[%emt 0:00:30]} 40. Qa8+ {[%emt 0:00:30]} Ke7 {[%emt 0:00:30]} 41. Bc6 {[%emt 0:00:30][%csl Gc6][%cal Ra8e8]} Bc3 {[%emt 0:00:30]} 42. Bg5+ {[%emt 0:00:30] Weighted Error Value: White=0.33/Black=0.79} 1-0

[Event "13th KIIT Festival-A 2022"]
[Site "Bhubaneswar"]
[Date "2022.05.27"]
[Round "8.16"]
[White "Tamhankar, Siddhant"]
[Black "Nayak Rajesh"]
[Result "1/2-1/2"]
[ECO "B51"]
[WhiteElo "1802"]
[BlackElo "2179"]
[Annotator "TA"]
[PlyCount "111"]
[EventDate "2022.05.15"]
[EventType "swiss"]
[EventCountry "IND"]
[SourceTitle "playchess.com"]
[Source "ChessBase"]
[SourceQuality "1"]
[TimeControl "5400+30"]

{[%evp 19,111,29,44,2,60,63,49,19,32,6,23,31,35,20,38,31,28,30,58,51,59,34,45,-6,81,74,65,124,97,67,41,60,48,40,44,42,44,38,38,61,42,0,0,0,0,0,0,0,0,0,0,0,0,0,0,0,0,0,0,0,0,0,0,-8,0,-85,-85,-85,-8,-8,-8,-8,0,-8,-8,-8,-8,-8,-8,-8,-8,-8,-8,-8,-8,-8,-8,-8,-8,-15,-8,-8,-8,-8]} 1. e4 {[%emt 0:00:03]} c5 {[%emt 0:06:12]} 2. Nf3 {[%emt 0:00:22]} d6 {[%emt 0:00:23]} 3. Bb5+ {[%emt 0:00:20]} Nd7 {[%emt 0:00:11]} 4. O-O {[%emt 0:00:20]} Ngf6 {[%emt 0:00:24]} 5. d4 {[%emt 0:04:57]} cxd4 {[%emt 0:00:34]} 6. Qxd4 {[%emt 0:00:13]} e5 {[%emt 0:08:17]} 7. Qd3 {[%emt 0:01:34]} h6 {[%emt 0:00:21]} 8. c4 {[%emt 0:01:19]} Be7 {[%emt 0:00:16]} 9. Nc3 {[%emt 0:00:50]} a6 {[%emt 0:00:05]} 10. Bxd7+ {[%emt 0:00:08]} Bxd7 {[%emt 0:00:09]} 11. b3 {[%emt 0:02:08] B51: Sicilian: Moscow Variation (3 Bb5+) without 3...Bd7.} Bc6 {[%emt 0:00:51]} (11... b5 $11) 12. Rd1 $14 {[%emt 0:04:05]} O-O {[%emt 0:00:21][%cal Ob7b5]} 13. a4 {[%emt 0:03:02] Inhibits b5. White is slightly better.} b5 {[%emt 0:14:23] [#]} 14. a5 $146 {[%emt 0:07:03]} ({Predecessor:} 14. Ba3 bxa4 15. bxa4 Qa5 16. c5 dxc5 17. Nxe5 Qc7 18. Nf3 Qa5 19. Ne5 Qc7 20. Nxc6 Qxc6 {½-½ (32) Ni,H (2633)-Gundavaa,B (2472) Guangzhou 2010}) 14... Rb8 {[%emt 0:09:36]} (14... b4 $5 {[%cal Rb4c3]} 15. Nd5 Nxd5 16. exd5 Bd7 $11) 15. Be3 {[%emt 0:04:02]} Qc7 {[%emt 0:08:24]} 16. Nd5 {[%emt 0:07:16]} Bxd5 {[%emt 0:09:23]} 17. cxd5 {[%emt 0:00:19]} Rfc8 {[%emt 0:00:21]} 18. Rdc1 {[%emt 0:11:29] Prevents Qc3.} Qd7 {[%emt 0:00:55]} 19. Ne1 {[%emt 0:11:32]} Bd8 {[%emt 0:03:22]} 20. Nc2 {[%emt 0:02:20]} b4 $1 {[%emt 0:09:14]} 21. Ne1 {[%emt 0:17:09]} ({White should try} 21. Qxa6 $14 Ra8 22. Qd3) 21... Rc3 {[%emt 0:04:23]} (21... Qb7 $11 {keeps the balance.}) 22. Rxc3 $16 {[%emt 0:02:26]} bxc3 {[%emt 0:00:07]} 23. Qxa6 {[%emt 0:01:18] Hoping for f3.} Nxe4 {[%emt 0:00:07]} 24. Qc6 {[%emt 0:02:10]} Qxc6 {[%emt 0:01:54]} 25. dxc6 {[%emt 0:00:05][%cal Oe3b6] [#] Threatens to win with Bb6!} d5 {[%emt 0:00:03] ...d4 is the strong threat.} (25... Rxb3 $2 26. a6 Rb8 27. a7 $18) 26. Bb6 {[%emt 0:01:44]} Bxb6 {[%emt 0:00:37]} 27. axb6 {[%emt 0:00:06]} Rxb6 $14 {[%emt 0:00:02][%mdl 4096] Endgame KRN-KRN} 28. c7 {[%emt 0:03:56]} Nd6 {[%emt 0:00:08]} 29. Ra8+ {[%emt 0:05:31]} Kh7 {[%emt 0:00:11]} 30. Rd8 {[%emt 0:05:36][%cal Od8d6] [#] aiming for Rxd6!} (30. f4 {looks sharper.} f6 31. Rd8 Rc6 32. fxe5 fxe5 33. Rxd6 Rxc7 34. Rxd5 c2 35. Nxc2 Rxc2 36. Rxe5 Rb2 37. Rb5) 30... Rc6 {[%emt 0:01:18][%cal Oc6c7]} 31. f4 {[%emt 0:00:24]} Rxc7 {[%emt 0:04:03]} 32. Rxd6 {[%emt 0:00:42]} c2 {[%emt 0:00:07]} ({Don't play} 32... exf4 33. Nc2 $16) 33. Nxc2 {[%emt 0:00:07]} Rxc2 {[%emt 0:00:05]} 34. fxe5 $11 {[%emt 0:00:22] KR-KR} Rb2 {[%emt 0:00:17]} 35. Rxd5 {[%emt 0:01:51]} Rxb3 {[%emt 0:00:07]} 36. Kf2 {[%emt 0:00:33]} Kg6 {[%emt 0:00:12]} 37. Rd7 {[%emt 0:00:19]} h5 {[%emt 0:00:35]} 38. Re7 {[%emt 0:00:16]} Ra3 {[%emt 0:00:58]} 39. e6 {[%emt 0:00:33]} f6 {[%emt 0:01:20]} 40. Re8 {[%emt 0:00:19]} Ra5 {[%emt 0:01:06]} 41. Kf3 {[%emt 0:00:19]} Re5 {[%emt 0:00:53]} 42. g4 {[%emt 0:01:24]} (42. Re7 $11) 42... hxg4+ $17 {[%emt 0:00:19]} 43. Kxg4 {[%emt 0:00:02]} f5+ {[%emt 0:00:39]} (43... Re4+ $17 44. Kf3 Kf5) 44. Kf4 $11 {[%emt 0:00:08] The position is equal.} Re2 {[%emt 0:02:11]} 45. e7 {[%emt 0:00:49]} Re4+ {[%emt 0:00:09]} 46. Kf3 {[%emt 0:00:24]} Kg5 {[%emt 0:01:12]} 47. h4+ {[%emt 0:00:17]} Kf6 {[%emt 0:00:14]} 48. Rf8+ {[%emt 0:00:22]} Kxe7 {[%emt 0:00:07]} 49. Rxf5 {[%emt 0:00:03]} Rxh4 {[%emt 0:00:05]} 50. Kg3 {[%emt 0:00:18]} Rb4 {[%emt 0:00:25]} 51. Ra5 {[%emt 0:00:11]} Kf6 {[%emt 0:00:09]} 52. Ra6+ {[%emt 0:00:06]} Kg5 {[%emt 0:00:15]} 53. Ra5+ {[%emt 0:00:05]} Kh6 {[%emt 0:00:04]} 54. Ra6+ {[%emt 0:00:16]} g6 {[%emt 0:00:07]} 55. Ra5 {[%emt 0:00:14]} g5 {[%emt 0:00:15]} 56. Ra8 {[%emt 0:00:16] Weighted Error Value: White=0.12 (very precise) /Black=0.12 (very precise)} 1/2-1/2

[Event "13th KIIT Festival-A 2022"]
[Site "Bhubaneswar"]
[Date "2022.05.27"]
[Round "8.17"]
[White "Santu, Mondal"]
[Black "Priansh Das"]
[Result "1-0"]
[ECO "E69"]
[WhiteElo "2097"]
[BlackElo "1754"]
[Annotator "TA"]
[PlyCount "65"]
[EventDate "2022.05.15"]
[EventType "swiss"]
[EventCountry "IND"]
[SourceTitle "playchess.com"]
[Source "ChessBase"]
[SourceQuality "1"]
[TimeControl "5400+30"]

{[%evp 18,65,50,56,44,44,83,90,82,64,66,51,61,62,55,49,214,216,198,191,207,195,188,192,203,186,175,164,253,88,241,193,495,228,1160,350,1328,1316,29980,29981,29981,29982,29982,29983,29983,29984,29991,29992,29992,29993]} 1. d4 {[%emt 0:00:32]} Nf6 {[%emt 0:00:05]} 2. Nf3 {[%emt 0:00:26]} g6 {[%emt 0:00:08]} 3. c4 {[%emt 0:00:17]} d6 {[%emt 0:00:06]} 4. Nc3 {[%emt 0:00:14]} Bg7 {[%emt 0:00:07]} 5. g3 {[%emt 0:00:40]} O-O {[%emt 0:00:08]} 6. Bg2 {[%emt 0:00:03]} c6 {[%emt 0:00:29]} 7. e4 {[%emt 0:01:03]} Nbd7 {[%emt 0:01:31]} 8. O-O {[%emt 0:01:19]} e5 {[%emt 0:01:24]} 9. h3 {[%emt 0:02:38]} Qe7 {[%emt 0:01:15]} 10. Re1 {[%emt 0:02:13]} b6 {[%emt 0:03:21] 10...h6 is a critical line. E69: King's Indian: Fianchetto: 6...Nbd7 7 0-0 e5 8 e4 c6 9 h3.} 11. b3 {[%emt 0:04:52] [#]} exd4 $146 {[%emt 0:02:25]} ({Predecessor:} 11... Bb7 12. Ba3 c5 13. dxe5 Nxe5 14. Nxe5 Qxe5 15. Bb2 Rad8 16. Qd2 Qe7 17. Rad1 Rfe8 18. Nb5 {1-0 (47) Terry,R (2510)-Galaktionov,A (2343) Chess.com INT 2019}) 12. Nxd4 {[%emt 0:01:06]} Bb7 {[%emt 0:00:10] White is better.} 13. Bb2 {[%emt 0:02:19]} (13. Bg5 {is interesting.} h6 14. Bf4 Nh5 15. Be3) 13... Rfe8 {[%emt 0:00:45]} 14. Qd2 {[%emt 0:05:12]} Rad8 {[%emt 0:01:44]} 15. Rad1 {[%emt 0:01:00] White is more active.} Nc5 {[%emt 0:00:35]} 16. Kh2 {[%emt 0:05:30]} Ne6 $2 {[%emt 0:05:17] [#] White leaves nothing to chance now.} (16... Qd7 $14) 17. Nd5 $1 $18 {[%emt 0:06:41][%mdl 512]} cxd5 {[%emt 0:30:46]} 18. exd5 {[%emt 0:00:42]} Qc7 {[%emt 0:11:40] Hoping for ...Nxd4.} (18... Nxd5 $2 19. cxd5 Qg5 20. Rxe6 (20. Nxe6 Qxd2 21. Rxd2 fxe6 $16) 20... Qxd2 21. Rxe8+ Rxe8 22. Rxd2 $18) 19. dxe6 {[%emt 0:01:25] And now Nb5 would win.} Bxg2 {[%emt 0:00:42]} 20. Kxg2 {[%emt 0:02:27]} Qb7+ {[%emt 0:01:34]} 21. Kh2 {[%emt 0:03:56]} Ne4 {[%emt 0:00:55] [#]} 22. Qf4 {[%emt 0:10:07]} f5 {[%emt 0:00:41]} (22... Nc5 {keeps fighting.}) 23. Re2 $2 {[%emt 0:02:06]} (23. f3 $18 {and the rest is easy.} Be5 24. Qe3 Bxg3+ 25. Kg2) 23... h6 $2 {[%emt 0:13:11]} (23... Bxd4 $16 24. Rxd4 (24. Bxd4 Rxe6 25. Bb2 Rde8 $16) 24... Rxe6) 24. h4 {[%emt 0:03:14]} h5 $2 {[%emt 0:14:04]} (24... Nf6 {is more resistant.} 25. Rde1 Re7) 25. Rde1 {[%emt 0:11:13]} (25. f3 $142 Nc5 26. Qg5) 25... Nc5 {[%emt 0:05:40]} (25... Be5 26. Qh6 Qh7 27. Qxh7+ Kxh7) 26. Qd2 $2 {[%emt 0:10:43]} (26. e7 Rd7 27. Qg5) 26... Kh7 $2 {[%emt 0:01:10]} (26... Ne4 27. Qe3 Be5) 27. e7 {[%emt 0:02:49] Strongly threatening Nxf5.} Rd7 {[%emt 0:00:30] [#]} 28. Nxf5 $1 {[%emt 0:00:50][%mdl 512] White mates.} gxf5 {[%emt 0:00:55]} (28... Rdxe7 29. Rxe7) 29. Bxg7 {[%emt 0:00:07]} Rdxe7 {[%emt 0:02:23]} 30. Qh6+ {[%emt 0:00:34]} Kg8 {[%emt 0:00:03]} 31. Rxe7 {[%emt 0:01:26]} Rxe7 {[%emt 0:00:07]} 32. Qh8+ {[%emt 0:00:09]} Kf7 {[%emt 0:00:02]} 33. Qf8+ {[%emt 0:00:13] Weighted Error Value: White=0.38/Black=0.87} 1-0